bitfinex-derivatives/quotes_BTCF0:USTF0_20241023
["timestamp","ask_amount","ask_price","bid_price","bid_amount"]
[1729672957590,0.50346904,66764.0,66763.0,0.0002]
[1729672957998,0.63795606,66764.0,66763.0,0.0002]
[1729672958499,0.59194529,66764.0,66763.0,0.0002]
[1729672958696,0.45765827,66764.0,66763.0,0.0002]
[1729672959089,0.45765827,66764.0,66763.0,0.1102]
[1729672960100,0.39770727,66764.0,66763.0,0.170152]
[1729672960397,0.39770727,66764.0,66763.0,0.230152]
[1729672961302,0.361,66764.0,66763.0,0.230152]
[1729672961596,0.39770497,66764.0,66763.0,0.230152]
[1729672962109,0.0002,66764.0,66763.0,0.230152]
[1729672965096,0.0002,66764.0,66763.0,0.060152]
[1729672965393,0.17986,66777.0,66763.0,0.25342672]
[1729672965599,0.059943,66773.0,66771.0,0.07479662]
[1729672965894,0.059939,66777.0,66772.0,0.07479662]
[1729672966092,0.07645327,66777.0,66773.0,0.07479662]
[1729672966401,0.2192,66780.0,66776.0,0.13493662]
[1729672966608,0.2192,66780.0,66777.0,0.24479662]
[1729672966798,0.2192,66780.0,66777.0,0.24499662]
[1729672967304,0.2192,66780.0,66777.0,0.30493562]
[1729672967499,0.2192,66780.0,66777.0,0.230139]
[1729672967806,0.0002,66778.0,66777.0,0.34434377]
[1729672968108,0.0002,66778.0,66777.0,0.4340894]
[1729672968397,0.0002,66778.0,66777.0,0.40994377]
[1729672970198,0.0002,66778.0,66777.0,0.42623429]
[1729672970400,0.0002,66778.0,66777.0,0.295739]
[1729672970698,0.0002,66778.0,66777.0,0.230139]
[1729672973194,0.0002,66778.0,66777.0,0.679379]
[1729672974698,0.2192,66780.0,66779.0,0.059938]
[1729672975097,0.2192,66780.0,66779.0,0.060138]
[1729672975397,0.2192,66780.0,66779.0,0.123438]
[1729672980902,0.2192,66780.0,66779.0,0.060138]
[1729672981295,0.30188822,66780.0,66779.0,0.060138]
[1729672982105,0.30188822,66780.0,66779.0,0.0002]
[1729672982106,0.72262522,66780.0,66779.0,0.0002]
[1729672982405,0.059938,66778.0,66777.0,0.0002]
[1729672982598,0.590738,66778.0,66777.0,0.0002]
[1729672982799,0.059939,66777.0,66776.0,0.0002]
[1729672983003,0.58567628,66777.0,66764.0,0.17]
[1729672983202,0.16377393,66765.0,66764.0,0.17]
[1729672983408,0.44348822,66765.0,66764.0,0.17]
[1729672983607,0.49723628,66765.0,66764.0,0.17]
[1729672983809,0.13643628,66765.0,66764.0,0.17]
[1729672984099,0.31262769,66765.0,66764.0,0.229951]
[1729672984400,0.07768822,66765.0,66764.0,0.229951]
[1729672984715,0.22370965,66768.0,66765.0,0.05995]
[1729672985008,0.03670284,66767.0,66765.0,0.05995]
[1729672986109,0.03670291,66766.0,66765.0,0.05995]
[1729672988417,0.03670291,66766.0,66764.0,0.17]
[1729672988607,0.16376165,66766.0,66764.0,0.17]
[1729672988907,0.39750291,66765.0,66763.0,0.060152]
[1729672989112,0.3608,66765.0,66764.0,0.17]
[1729672989319,0.38324986,66765.0,66764.0,0.17]
[1729672990216,0.32329986,66765.0,66764.0,0.17]
[1729672991298,0.32329986,66765.0,66764.0,0.229951]
[1729672991803,0.32329986,66765.0,66764.0,0.30465575]
[1729672992705,0.36264,66771.0,66764.0,0.24470475]
[1729672992904,0.3608,66771.0,66769.0,0.17]
[1729672993100,0.0603,66770.0,66769.0,0.17]
[1729672993311,0.120246,66770.0,66769.0,0.17]
[1729672993712,0.0603,66770.0,66769.0,0.17]
[1729672994010,0.0553,66770.0,66769.0,0.17]
[1729672994210,0.0553,66770.0,66766.0,0.07470475]
[1729672994405,0.059948,66768.0,66765.0,0.24470475]
[1729672994729,0.059951,66764.0,66763.0,0.07494054]
[1729672995119,0.059951,66764.0,66763.0,0.0002]
[1729672995313,0.123451,66764.0,66763.0,0.0002]
[1729673002406,0.0635,66764.0,66763.0,0.060152]
[1729673004418,0.3775519,66765.0,66763.0,0.060152]
[1729673004622,0.3775519,66765.0,66764.0,0.17]
[1729673005811,0.4375019,66765.0,66763.0,0.0002]
[1729673006010,0.059951,66764.0,66763.0,0.0002]
[1729673007327,0.08890608,66764.0,66763.0,0.0002]
[1729673007721,0.059951,66764.0,66763.0,0.0002]
[1729673008627,0.02895438,66764.0,66763.0,0.060152]
[1729673008815,0.3775519,66765.0,66763.0,0.060152]
[1729673009013,0.02895472,66764.0,66763.0,0.060152]
[1729673009216,0.3775519,66765.0,66763.0,0.1702]
[1729673009425,0.4375019,66765.0,66763.0,0.1702]
[1729673010124,0.02895411,66764.0,66763.0,0.1702]
[1729673011319,0.4394619,66765.0,66763.0,0.28442551]
[1729673011521,0.4375019,66765.0,66764.0,0.18906262]
[1729673011723,0.4375019,66765.0,66764.0,0.11422547]
[1729673012819,0.0767019,66765.0,66764.0,0.11422547]
[1729673013927,0.0767019,66765.0,66764.0,0.11422548]
[1729673014229,0.0767019,66765.0,66764.0,0.22422548]
[1729673017741,0.0767019,66765.0,66764.0,0.11422548]
[1729673019333,0.0767019,66765.0,66763.0,0.0002]
[1729673019334,0.059951,66764.0,66763.0,0.0002]
[1729673019730,0.14266914,66764.0,66763.0,0.0002]
[1729673020429,0.17162452,66764.0,66763.0,0.0002]
[1729673021028,0.53242452,66764.0,66763.0,0.0002]
[1729673021836,0.66675871,66764.0,66763.0,0.0002]
[1729673022028,0.53242452,66764.0,66763.0,0.0002]
[1729673022228,0.486414,66764.0,66763.0,0.0002]
[1729673023227,0.48641382,66764.0,66763.0,0.0002]
[1729673024426,0.48641249,66764.0,66763.0,0.0002]
[1729673024842,0.45745861,66764.0,66763.0,0.0002]
[1729673026427,0.420751,66764.0,66763.0,0.11442723]
[1729673026629,0.420751,66764.0,66763.0,0.20407293]
[1729673027133,0.059951,66764.0,66763.0,0.11442723]
[1729673027736,0.0167519,66765.0,66764.0,0.059951]
[1729673027937,0.059947,66768.0,66764.0,0.37414075]
[1729673028140,0.059949,66766.0,66765.0,0.20418975]
[1729673028444,0.059949,66766.0,66765.0,0.31418975]
[1729673028745,0.11,66777.0,66765.0,0.31418975]
[1729673028746,0.3608,66778.0,66765.0,0.47250117]
[1729673028930,0.37911592,66778.0,66777.0,0.11]
[1729673029237,0.37723591,66778.0,66777.0,0.22422723]
[1729673029426,0.37723591,66778.0,66777.0,0.28416623]
[1729673029835,0.3608,66778.0,66777.0,0.28416623]
[1729673031043,0.279137,66780.0,66777.0,0.28416623]
[1729673031044,0.2192,66780.0,66777.0,0.33422723]
[1729673031340,0.2192,66780.0,66779.0,0.169938]
[1729673031542,0.2192,66780.0,66779.0,0.17416523]
[1729673031730,0.2192,66780.0,66779.0,0.23626523]
[1729673034331,0.18171146,66780.0,66779.0,0.23626523]
[1729673034531,0.18171146,66780.0,66779.0,0.31099755]
[1729673034737,0.18171146,66780.0,66779.0,0.19677032]
[1729673035538,0.18171146,66780.0,66779.0,0.122038]
[1729673038745,0.17671146,66780.0,66779.0,0.122038]
[1729673039947,0.17171146,66780.0,66779.0,0.122038]
[1729673040341,0.17171146,66780.0,66779.0,0.0621]
[1729673040650,0.17171146,66780.0,66779.0,0.05970816]
[1729673040651,0.34164846,66780.0,66779.0,0.05970816]
[1729673040948,0.34164846,66780.0,66778.0,0.05970816]
[1729673040949,0.059938,66779.0,66778.0,0.05970816]
[1729673041548,0.059938,66779.0,66776.0,0.00076]
[1729673041549,0.059939,66777.0,66776.0,0.00076]
[1729673041739,0.13894596,66777.0,66769.0,0.36164]
[1729673042049,0.16355878,66772.0,66769.0,0.3608]
[1729673042248,0.11163767,66771.0,66770.0,0.11]
[1729673042450,0.02894596,66771.0,66770.0,0.11]
[1729673042641,0.08889096,66771.0,66770.0,0.11]
[1729673042950,0.17158267,66771.0,66769.0,0.3608]
[1729673043145,0.11163767,66770.0,66767.0,0.11]
[1729673043453,0.11163767,66770.0,66764.0,0.0649]
[1729673043454,0.059949,66766.0,66764.0,0.0649]
[1729673043743,0.26033836,66765.0,66764.0,0.0649]
[1729673043951,0.11163767,66765.0,66764.0,0.0649]
[1729673044350,0.06564185,66765.0,66764.0,0.2349]
[1729673044550,0.11163767,66765.0,66764.0,0.2349]
[1729673045049,0.11165899,66765.0,66764.0,0.294851]
[1729673047243,0.11165899,66765.0,66764.0,0.17]
[1729673047451,0.11165899,66765.0,66763.0,0.0002]
[1729673047452,0.14870069,66765.0,66763.0,0.0002]
[1729673048555,0.11165899,66764.0,66763.0,0.0002]
[1729673048751,0.11165899,66764.0,66763.0,0.1702]
[1729673049158,0.06565743,66764.0,66763.0,0.1702]
[1729673049347,0.20864969,66767.0,66763.0,0.1702]
[1729673049548,0.20864969,66767.0,66763.0,0.24488509]
[1729673049957,0.059951,66764.0,66763.0,0.07488509]
[1729673050157,0.059951,66764.0,66763.0,0.0002]
[1729673050661,0.059951,66764.0,66763.0,0.0599572]
[1729673050864,0.059951,66764.0,66763.0,0.0002]
[1729673051054,0.059951,66764.0,66763.0,0.04502146]
[1729673052258,0.059951,66764.0,66763.0,0.04501799]
[1729673052757,0.059951,66764.0,66763.0,0.0002]
[1729673053263,0.059951,66764.0,66756.0,0.07468509]
[1729673053264,0.059955,66760.0,66756.0,0.05975977]
[1729673053454,0.11024,66761.0,66758.0,0.0448211]
[1729673053758,0.11024,66761.0,66757.0,0.0448211]
[1729673053759,0.059956,66758.0,66757.0,0.0448211]
[1729673054258,0.17,66759.0,66756.0,0.0448211]
[1729673054463,0.059957,66757.0,66756.0,0.0448211]
[1729673056455,0.05996,66754.0,66749.0,0.00224711]
[1729673056655,0.42076,66754.0,66749.0,0.00224711]
[1729673057659,0.42076,66754.0,66751.0,0.17]
[1729673058556,0.05996,66754.0,66751.0,0.17]
[1729673060261,0.130757,66758.0,66751.0,0.229962]
[1729673060466,0.059957,66757.0,66752.0,0.059961]
[1729673060662,0.059959,66756.0,66752.0,0.059961]
[1729673060860,0.059959,66756.0,66751.0,0.17]
[1729673060861,0.059959,66755.0,66751.0,0.17]
[1729673062466,0.0708,66758.0,66751.0,0.17]
[1729673062664,0.059962,66753.0,66749.0,0.00300711]
[1729673062859,0.0708,66758.0,66752.0,0.17]
[1729673062860,0.2408,66758.0,66752.0,0.17]
[1729673063162,0.059959,66755.0,66752.0,0.17]
[1729673064260,0.059959,66755.0,66754.0,0.11]
[1729673065871,0.12674594,66759.0,66757.0,0.059957]
[1729673066057,0.12674594,66759.0,66757.0,0.21473945]
[1729673066459,0.12674594,66759.0,66758.0,0.04478245]
[1729673066660,0.12674594,66759.0,66758.0,0.04479249]
[1729673066966,0.18670094,66759.0,66758.0,0.04479481]
[1729673067161,0.12674594,66759.0,66757.0,0.11]
[1729673067370,0.18670094,66759.0,66758.0,0.04479516]
[1729673067564,0.07642094,66759.0,66757.0,0.059957]
[1729673069967,0.059956,66758.0,66757.0,0.059957]
[1729673071472,0.08891343,66758.0,66757.0,0.059957]
[1729673071775,0.02895743,66758.0,66757.0,0.169957]
[1729673072272,0.02895743,66758.0,66752.0,0.065]
[1729673072273,0.13895743,66758.0,66752.0,0.065]
[1729673072473,0.11,66753.0,66749.0,0.00224711]
[1729673072676,0.420764,66750.0,66749.0,0.00224711]
[1729673072878,0.4497224,66750.0,66749.0,0.00224711]
[1729673077982,0.059965,66749.0,66746.0,0.11]
[1729673078178,0.0289613,66748.0,66746.0,0.11]
[1729673078380,0.0289613,66747.0,66746.0,0.11]
[1729673079278,0.0889273,66747.0,66746.0,0.11]
[1729673079482,0.37778683,66750.0,66746.0,0.22425574]
[1729673079789,0.37778683,66750.0,66749.0,0.07487749]
[1729673080180,0.37778683,66750.0,66749.0,0.18913323]
[1729673081182,0.37778683,66750.0,66749.0,0.07487749]
[1729673081381,0.43775083,66750.0,66749.0,0.18913323]
[1729673082888,0.48778683,66750.0,66746.0,0.07487749]
[1729673083193,0.059964,66749.0,66748.0,0.07487749]
[1729673083383,0.059967,66746.0,66745.0,0.07487749]
[1729673083583,0.11,66745.0,66743.0,0.07487749]
[1729673083781,0.05997,66743.0,66742.0,0.07487749]
[1729673083977,0.42077,66743.0,66742.0,0.18914725]
[1729673084188,0.42077,66743.0,66742.0,0.07487749]
[1729673084392,0.42077,66743.0,66741.0,0.07487749]
[1729673085083,0.059971,66742.0,66741.0,0.07487749]
[1729673085285,0.059972,66741.0,66740.0,0.18487749]
[1729673085485,0.059972,66741.0,66740.0,0.29914846]
[1729673086285,0.059972,66741.0,66740.0,0.29914832]
[1729673086586,0.059972,66741.0,66740.0,0.29914802]
[1729673086794,0.059972,66741.0,66740.0,0.18487749]
[1729673087295,0.059972,66741.0,66740.0,0.11]
[1729673088082,0.059972,66741.0,66740.0,0.18487749]
[1729673088285,0.059972,66741.0,66740.0,0.11]
[1729673088682,0.07685652,66741.0,66740.0,0.11]
[1729673089785,0.059972,66741.0,66740.0,0.18487749]
[1729673089992,0.059972,66741.0,66740.0,0.29914809]
[1729673091188,0.059972,66741.0,66740.0,0.29914735]
[1729673091390,0.37746065,66743.0,66740.0,0.29914735]
[1729673091588,0.37746065,66743.0,66740.0,0.18487749]
[1729673091788,0.3608,66743.0,66741.0,0.059972]
[1729673091984,0.3608,66743.0,66741.0,0.13484949]
[1729673092496,0.3608,66743.0,66742.0,0.18914264]
[1729673092688,0.3608,66743.0,66742.0,0.07487749]
[1729673093583,0.42077,66743.0,66742.0,0.07487749]
[1729673093787,0.3608,66743.0,66742.0,0.07487749]
[1729673094182,0.422605,66749.0,66742.0,0.11426078]
[1729673094387,0.3608,66749.0,66748.0,0.11]
[1729673094798,0.43737988,66749.0,66748.0,0.11]
[1729673096898,0.43737988,66749.0,66746.0,0.11]
[1729673097694,0.43737988,66749.0,66746.0,0.169967]
[1729673098394,0.43737988,66749.0,66748.0,0.11]
[1729673099392,0.43738088,66749.0,66748.0,0.059965]
[1729673099701,0.059961,66753.0,66749.0,0.059964]
[1729673099902,0.059962,66752.0,66750.0,0.11]
[1729673100102,0.059962,66752.0,66750.0,0.169963]
[1729673100399,0.3608,66756.0,66754.0,0.059959]
[1729673100603,0.059962,66753.0,66752.0,0.11]
[1729673100793,0.059962,66752.0,66751.0,0.1126226]
[1729673101401,0.059962,66752.0,66751.0,0.0677]
[1729673101597,0.059962,66752.0,66751.0,0.18194931]
[1729673101800,0.059962,66752.0,66751.0,0.29194931]
[1729673103996,0.420758,66756.0,66755.0,0.059959]
[1729673104197,0.3608,66756.0,66755.0,0.169959]
[1729673104398,0.3608,66756.0,66755.0,0.35909298]
[1729673104709,0.3608,66756.0,66755.0,0.28420748]
[1729673106008,0.059957,66757.0,66755.0,0.28420748]
[1729673106207,0.059957,66757.0,66756.0,0.07485982]
[1729673107323,0.059957,66757.0,66755.0,0.24481882]
[1729673108007,0.059957,66757.0,66756.0,0.07485982]
[1729673108205,0.059957,66757.0,66755.0,0.24481882]
[1729673108901,0.059958,66756.0,66755.0,0.24481882]
[1729673109106,0.059958,66756.0,66755.0,0.3590597]
[1729673109606,0.13492975,66756.0,66755.0,0.169959]
[1729673109805,0.11168232,66756.0,66755.0,0.169959]
[1729673110306,0.14904174,66756.0,66755.0,0.169959]
[1729673110905,0.26072406,66756.0,66755.0,0.169959]
[1729673111614,0.11168232,66756.0,66755.0,0.169959]
[1729673111913,0.11168232,66756.0,66749.0,0.3608]
[1729673111914,0.22168232,66756.0,66749.0,0.3608]
[1729673112108,0.13412943,66752.0,66749.0,0.3608]
[1729673112304,0.17164532,66751.0,66750.0,0.11]
[1729673112701,0.12563111,66751.0,66750.0,0.11]
[1729673113209,0.12063111,66751.0,66750.0,0.11]
[1729673113806,0.08392054,66751.0,66750.0,0.11]
[1729673114210,0.02395754,66751.0,66750.0,0.169964]
[1729673114510,0.059958,66757.0,66753.0,0.059961]
[1729673114713,0.03671056,66756.0,66754.0,0.0678]
[1729673114913,0.03671056,66755.0,66754.0,0.0678]
[1729673115317,0.03171056,66755.0,66754.0,0.0678]
[1729673115619,0.03171056,66755.0,66754.0,0.12776]
[1729673115807,0.03171056,66755.0,66754.0,0.0678]
[1729673116011,0.059964,66750.0,66749.0,0.00076]
[1729673116202,0.059965,66749.0,66746.0,0.11]
[1729673116403,0.054965,66749.0,66746.0,0.11]
[1729673116809,0.054965,66749.0,66745.0,0.08962211]
[1729673116810,0.054965,66749.0,66748.0,0.11]
[1729673117119,0.054965,66749.0,66748.0,0.22415906]
[1729673119015,0.0711,66755.0,66748.0,0.22415906]
[1729673119222,0.05996,66754.0,66753.0,0.11]
[1729673119710,0.05996,66754.0,66753.0,0.18483615]
[1729673119910,0.05996,66754.0,66753.0,0.2990027]
[1729673120210,0.05996,66754.0,66753.0,0.29902556]
[1729673120411,0.05996,66754.0,66753.0,0.11]
[1729673121312,0.05996,66754.0,66753.0,0.18483615]
[1729673121916,0.05996,66754.0,66753.0,0.29907943]
[1729673122317,0.05996,66754.0,66753.0,0.22424328]
[1729673123013,0.05996,66754.0,66753.0,0.29912942]
[1729673123414,0.05996,66754.0,66753.0,0.22424328]
[1729673124519,0.11,66757.0,66753.0,0.22424328]
[1729673124714,0.11168399,66756.0,66753.0,0.11]
[1729673124914,0.11168399,66755.0,66753.0,0.11]
[1729673125120,0.27577387,66754.0,66753.0,0.11]
[1729673125322,0.29902275,66754.0,66753.0,0.11]
[1729673125509,0.17164399,66754.0,66753.0,0.11]
[1729673126317,0.11168399,66754.0,66750.0,0.11]
[1729673126624,0.059963,66751.0,66750.0,0.11]
[1729673126810,0.059964,66749.0,66748.0,0.36156]
[1729673127016,0.08892306,66749.0,66748.0,0.47156]
[1729673127210,0.22542024,66749.0,66748.0,0.4708]
[1729673127414,0.1716522,66749.0,66748.0,0.4708]
[1729673127915,0.5716522,66749.0,66748.0,0.4708]
[1729673128115,0.62542024,66749.0,66748.0,0.4708]
[1729673129842,0.62542258,66749.0,66748.0,0.3608]
[1729673131422,0.62542734,66749.0,66748.0,0.3608]
[1729673131625,0.459964,66749.0,66748.0,0.3608]
[1729673131814,0.459964,66749.0,66748.0,0.47505177]
[1729673132218,0.459964,66749.0,66748.0,0.56498582]
[1729673132422,0.459964,66749.0,66748.0,0.47505177]
[1729673132619,0.459964,66749.0,66748.0,0.56498582]
[1729673132820,0.459964,66749.0,66748.0,0.47505177]
[1729673133220,0.459964,66749.0,66748.0,0.56498582]
[1729673133923,0.459964,66749.0,66748.0,0.47505177]
[1729673134915,0.2800774,66749.0,66748.0,1.09445677]
[1729673135120,0.059951,66765.0,66748.0,2.25717119]
[1729673135422,0.059951,66765.0,66764.0,0.11]
[1729673135813,0.059951,66765.0,66763.0,0.07492221]
[1729673136014,0.130351,66764.0,66763.0,0.07492221]
[1729673137216,0.130351,66764.0,66762.0,0.07492221]
[1729673138733,0.059952,66763.0,66762.0,0.07492221]
[1729673138934,0.059952,66763.0,66762.0,0.18875155]
[1729673139223,0.059952,66763.0,66762.0,0.07492221]
[1729673139729,0.059952,66763.0,66760.0,0.22984949]
[1729673139941,0.059952,66763.0,66761.0,0.059954]
[1729673140724,0.059952,66763.0,66762.0,0.0449158]
[1729673141116,0.059952,66763.0,66762.0,0.1549158]
[1729673142234,0.059952,66763.0,66762.0,0.11]
[1729673142427,0.059952,66763.0,66762.0,0.1549158]
[1729673143127,0.059952,66763.0,66762.0,0.0449158]
[1729673143434,0.059952,66763.0,66762.0,0.1549158]
[1729673143825,0.054952,66763.0,66762.0,0.1549158]
[1729673144527,0.054952,66763.0,66762.0,0.11]
[1729673144727,0.049952,66763.0,66762.0,0.11]
[1729673146029,0.049952,66763.0,66762.0,0.1549158]
[1729673146329,0.044952,66763.0,66762.0,0.1549158]
[1729673146635,0.07390628,66763.0,66762.0,0.11]
[1729673146833,0.15662175,66763.0,66762.0,0.11]
[1729673147028,0.15162175,66763.0,66762.0,0.11]
[1729673149139,0.23306134,66763.0,66762.0,0.11]
[1729673149324,0.31577681,66763.0,66762.0,0.11]
[1729673149640,0.31077681,66763.0,66762.0,0.11]
[1729673149842,0.31077666,66763.0,66762.0,0.11]
[1729673150030,0.31077666,66763.0,66762.0,0.169953]
[1729673150732,0.1466216,66763.0,66762.0,0.169953]
[1729673153236,0.1116696,66763.0,66759.0,0.11]
[1729673153442,0.1716226,66762.0,66759.0,0.11]
[1729673153745,0.1116696,66761.0,66759.0,0.11]
[1729673153945,0.27545977,66760.0,66759.0,0.11]
[1729673154135,0.2294508,66760.0,66759.0,0.169955]
[1729673154446,0.1116696,66760.0,66759.0,0.169955]
[1729673154739,0.059954,66761.0,66759.0,0.169955]
[1729673155033,0.059954,66761.0,66760.0,0.04488722]
[1729673155237,0.059954,66761.0,66759.0,0.169955]
[1729673155634,0.059954,66761.0,66760.0,0.04488676]
[1729673156237,0.059954,66761.0,66759.0,0.169955]
[1729673156439,0.059954,66761.0,66760.0,0.04488736]
[1729673156739,0.059954,66761.0,66760.0,0.04488828]
[1729673156932,0.059954,66761.0,66759.0,0.169955]
[1729673157627,0.059955,66760.0,66759.0,0.11]
[1729673157831,0.169955,66760.0,66759.0,0.04489294]
[1729673158135,0.059955,66759.0,66758.0,0.04489294]
[1729673160346,0.059956,66758.0,66757.0,0.11]
[1729673161137,0.11,66758.0,66756.0,0.04491094]
[1729673161350,0.059958,66756.0,66755.0,0.04491094]
[1729673161551,0.059961,66753.0,66752.0,0.04491094]
[1729673161753,0.059961,66753.0,66744.0,0.11]
[1729673161754,0.38975979,66753.0,66744.0,0.11]
[1729673162043,0.14900611,66746.0,66744.0,0.059969]
[1729673162245,0.11169101,66745.0,66744.0,0.059969]
[1729673162435,0.26069843,66745.0,66744.0,0.169969]
[1729673162939,0.06567399,66745.0,66744.0,0.169969]
[1729673165443,0.05997,66743.0,66742.0,0.00088]
[1729673165638,0.059973,66740.0,66739.0,0.11]
[1729673166042,0.12564705,66740.0,66739.0,0.11]
[1729673166751,0.17167108,66740.0,66739.0,0.11]
[1729673167440,0.1939169,66740.0,66739.0,0.11]
[1729673167743,0.17167108,66740.0,66739.0,0.11]
[1729673168348,0.24559702,66740.0,66739.0,0.11]
[1729673168541,0.19957299,66740.0,66739.0,0.169973]
[1729673168746,0.11169808,66740.0,66739.0,0.169973]
[1729673169138,0.2756048,66740.0,66739.0,0.169973]
[1729673169340,0.2756048,66740.0,66739.0,0.279973]
[1729673169548,0.26044224,66740.0,66739.0,0.279973]
[1729673169747,0.14874416,66740.0,66739.0,0.39423408]
[1729673170051,0.14874416,66740.0,66739.0,1.29446073]
[1729673170243,0.14874416,66740.0,66739.0,1.34070026]
[1729673170438,0.14874416,66740.0,66739.0,1.20455408]
[1729673171138,0.16390672,66743.0,66739.0,1.20455408]
[1729673171351,0.420756,66759.0,66739.0,1.20455408]
[1729673171352,0.420756,66759.0,66755.0,0.059959]
[1729673171545,0.420756,66759.0,66758.0,0.11]
[1729673173550,0.3608,66759.0,66758.0,0.11]
[1729673174747,0.3608,66759.0,66756.0,0.07474903]
[1729673174748,0.059957,66757.0,66756.0,0.07474903]
[1729673174943,0.059957,66757.0,66755.0,0.07474903]
[1729673175250,0.11,66756.0,66753.0,0.07474903]
[1729673175452,0.11,66756.0,66751.0,0.07474903]
[1729673175453,0.1775,66756.0,66751.0,0.07474903]
[1729673175643,0.4708,66752.0,66747.0,0.07474903]
[1729673175841,0.4708,66752.0,66742.0,0.08969883]
[1729673175842,0.3608,66752.0,66751.0,0.04486666]
[1729673176054,0.7216,66752.0,66751.0,0.04486666]
[1729673176252,0.7216,66752.0,66749.0,0.05982048]
[1729673176544,0.059964,66750.0,66749.0,0.05982048]
[1729673176750,0.059964,66749.0,66748.0,0.05982048]
[1729673176951,0.129364,66749.0,66748.0,0.05982048]
[1729673177546,0.195364,66749.0,66748.0,0.05982048]
[1729673178552,0.195364,66749.0,66748.0,0.11]
[1729673179153,0.1354,66749.0,66748.0,0.11]
[1729673179348,0.1354,66749.0,66748.0,0.24471403]
[1729673179960,0.783482,66752.0,66748.0,0.24471403]
[1729673179961,0.72352,66752.0,66751.0,0.059963]
[1729673180163,0.72352,66752.0,66751.0,0.169963]
[1729673180164,0.7216,66752.0,66751.0,0.169963]
[1729673180364,0.3608,66752.0,66751.0,0.229963]
[1729673180661,0.3608,66759.0,66757.0,0.059957]
[1729673180859,0.3608,66759.0,66758.0,0.229956]
[1729673181764,0.420755,66759.0,66758.0,0.17]
[1729673182649,0.420755,66759.0,66757.0,0.07477008]
[1729673183054,0.420755,66759.0,66756.0,0.07477008]
[1729673183363,0.3608,66759.0,66758.0,0.059956]
[1729673183950,0.3608,66759.0,66758.0,0.30472608]
[1729673184155,0.3608,66759.0,66758.0,0.41896128]
[1729673184356,0.3608,66759.0,66758.0,0.229956]
[1729673184654,0.3608,66759.0,66758.0,0.41896117]
[1729673184858,0.3608,66759.0,66758.0,0.229956]
[1729673188554,0.3608,66759.0,66758.0,0.679356]
[1729673190268,0.3608,66759.0,66758.0,0.229956]
[1729673191867,0.3608,66759.0,66758.0,0.41895935]
[1729673193256,0.3608,66759.0,66758.0,0.34418927]
[1729673193573,0.3608,66759.0,66758.0,0.41896207]
[1729673194362,0.3608,66759.0,66758.0,0.34418927]
[1729673194571,0.3608,66759.0,66758.0,0.3441893]
[1729673197872,0.1338,66768.0,66767.0,0.059948]
[1729673198077,0.1338,66768.0,66767.0,0.11977275]
[1729673198278,0.1338,66768.0,66767.0,0.059948]
[1729673199381,0.3608,66772.0,66765.0,0.07478404]
[1729673199679,0.3608,66772.0,66771.0,0.229945]
[1729673199880,0.39750211,66772.0,66771.0,0.229945]
[1729673200687,0.44350436,66772.0,66771.0,0.229945]
[1729673201378,0.57748149,66772.0,66771.0,0.229945]
[1729673201995,0.57748149,66772.0,66771.0,0.17]
[1729673202196,0.57748149,66772.0,66762.0,0.11152]
[1729673202383,0.03670211,66771.0,66770.0,0.17]
[1729673204288,0.3608,66772.0,66770.0,0.17]
[1729673205094,0.3608,66772.0,66771.0,0.059945]
[1729673206387,0.3558,66772.0,66771.0,0.059945]
[1729673206789,0.3558,66772.0,66770.0,0.17]
[1729673207193,0.3508,66772.0,66770.0,0.17]
[1729673207999,0.3458,66772.0,66770.0,0.17]
[1729673208798,0.3408,66772.0,66770.0,0.17]
[1729673209495,0.3358,66772.0,66770.0,0.17]
[1729673210489,0.3358,66772.0,66771.0,0.059945]
[1729673214296,0.3358,66772.0,66771.0,0.169945]
[1729673214794,0.47225263,66772.0,66771.0,0.169945]
[1729673217092,0.13645263,66772.0,66771.0,0.11]
[1729673217395,0.08270091,66772.0,66771.0,0.11]
[1729673217591,0.08270105,66772.0,66771.0,0.11]
[1729673217793,0.11165039,66772.0,66771.0,0.11]
[1729673218195,0.17159439,66772.0,66771.0,0.11]
[1729673219705,0.1878937,66772.0,66771.0,0.11]
[1729673220404,0.059945,66771.0,66766.0,0.059949]
[1729673220591,0.3608,66769.0,66766.0,0.059949]
[1729673220797,0.13645277,66768.0,66766.0,0.059949]
[1729673220999,0.14265645,66767.0,66762.0,0.059953]
[1729673221195,0.05375172,66768.0,66762.0,0.059953]
[1729673221196,0.14907039,66763.0,66762.0,0.059953]
[1729673221397,0.08270745,66763.0,66762.0,0.059953]
[1729673221598,0.44350745,66763.0,66757.0,0.00224656]
[1729673221802,0.14908167,66760.0,66757.0,0.1870306]
[1729673221996,0.0646,66759.0,66757.0,0.1870306]
[1729673222207,0.0669,66758.0,66757.0,0.17211335]
[1729673222402,0.126856,66758.0,66757.0,0.00224656]
[1729673222803,0.126856,66758.0,66755.0,0.04489911]
[1729673222804,0.1769,66758.0,66755.0,0.04489911]
[1729673223006,0.3608,66756.0,66754.0,0.04490128]
[1729673223304,0.420758,66756.0,66755.0,0.11]
[1729673224307,0.3608,66756.0,66751.0,0.17]
[1729673224611,0.05996,66754.0,66751.0,0.17]
[1729673225114,0.059961,66753.0,66751.0,0.17]
[1729673225309,0.5308,66756.0,66750.0,0.36156]
[1729673225608,0.5308,66756.0,66741.0,0.00300736]
[1729673225609,0.3608,66751.0,66741.0,0.00300736]
[1729673225815,0.3608,66742.0,66741.0,0.00224736]
[1729673226004,0.3608,66742.0,66741.0,0.23221936]
[1729673226203,0.3608,66742.0,66741.0,0.17224736]
[1729673229012,0.420771,66742.0,66741.0,0.17224736]
[1729673230015,0.38325884,66742.0,66741.0,0.17224736]
[1729673232807,0.059971,66742.0,66741.0,0.17224736]
[1729673243418,0.3608,66743.0,66741.0,0.17224736]
[1729673245131,0.059971,66742.0,66741.0,0.17224736]
[1729673246417,0.059971,66742.0,66741.0,0.11224736]
[1729673247018,0.059971,66742.0,66741.0,0.17211415]